Cogmind - Beta 17 @@@ ROGUE MODE // 2026.07.14 @ 14:08:01 // Winter2019/RPGLIKE Player: Gallgagger Result: Self-destructed Performance ------------- Evolutions (1) 500 Regions Visited (6) 1200 Robots Destroyed (6) 30 Value Destroyed (42) 42 Prototype IDs (24) 480 Alien Tech Used (0) 0 Bonus (300) 300 TOTAL SCORE: 2552 Bonus ------- Aligned with FarCom 300 Cogmind --------- Core Integrity 603/1800 Matter 300/300 Energy 100/100 System Corruption 0% Temperature Cool (0) Movement Walking (90) Location -8/Mines Parts ------- > --- POWER (1) -------- (None) > --- PROPULSION (4) --- Experimental Flexi-carbon Leg > --- UTILITY (1) ------ (None) > --- WEAPON (1) ------- Assault Rifle > --- INVENTORY (0) ---- (None) Peak State ------------ > --- POWER ------------ (None) > --- PROPULSION ------- Flying Fortress v7 > --- UTILITY ---------- (None) > --- WEAPON ----------- Assault Rifle > --- INVENTORY -------- (None) [Rating: 33] Favorites ----------- Power None Propulsion Flight Unit Leg Experimental Flexi-carbon Leg Flight Unit Flight Unit Utility None Weapon Assault Rifle Ballistic Gun Assault Rifle Launcher EMP Blaster Build | -11 -10 -10 -9 -9 -9 -8 ------- Run | Yrd Mat Min Mat Min Exi Min Slots Evolved 3 | . . 1 . . 2 . Power . | . . . . . . . Propulsion 3 | . . 1 . . 2 . Utility . | . . . . . . . Weapon . | . . . . . . . Parts Attached 6 | 1 2 1 . . 1 1 Power . | . . . . . . . Engine . | . . . . . . . Core . | . . . . . . . Reactor . | . . . . . . . Propulsion 4 | . 1 1 . . 1 1 Treads . | . . . . . . . Leg 1 | . . . . . . 1 Wheel . | . . . . . . . Hover . | . . . . . . . Flight 3 | . 1 1 . . 1 . Utility . | . . . . . . . Device . | . . . . . . . Storage . | . . . . . . . Processor . | . . . . . . . Hackware . | . . . . . . . Protection . | . . . . . . . Artifact . | . . . . . . . Weapon 2 | 1 1 . . . . . Energy Gun . | . . . . . . . Energy Cannon . | . . . . . . . Ballistic Gun 1 | 1 . . . . . . Ballistic Cannon . | . . . . . . . Launcher 1 | . 1 . . . . . Special Weapon . | . . . . . . . Impact Weapon . | . . . . . . . Slashing Weapon . | . . . . . . . Piercing Weapon . | . . . . . . . Special Melee Weapon . | . . . . . . . Unidentified Prototypes 1 | . . . . . . 1 Parts Lost . | . . . . . . . Power . | . . . . . . . Propulsion . | . . . . . . . Utility . | . . . . . . . Weapon . | . . . . . . . Highest Loss Streak . | . . . . . . . To Critical Strikes . | . . . . . . . Average Backups . | . . . . . . . Power . | . . . . . . . Propulsion . | . . . . . . . Utility . | . . . . . . . Weapon . | . . . . . . . Tool/Special . | . . . . . . . Unused Backups . | . . . . . . . Power . | . . . . . . . Propulsion . | . . . . . . . Utility . | . . . . . . . Weapon . | . . . . . . . Tool/Special . | . . . . . . . Average Slot Usage (%) 44 | . 34 57 60 60 41 28 Flight 24 | . 9 35 40 40 24 11 Ballistic Gun 19 | . 25 21 20 20 16 14 Peak Build Rating 33 | 1 2 3 3 3 33 33 Average Rating 12 | . 1 2 3 3 21 28 On Entrance 6 | . 1 2 3 3 3 33 Avg Prop Armor Cover (%) . | . . . . . . . Naked Turns . | . . . . . . . Heaviest Build 2 | 2 2 2 2 2 2 2 Greatest Support 50 | 3 4 8 8 8 50 50 Greatest Overweight (x) . | . . . . . . . Average Overweight (x) . | . . . . . . . Largest Inventory Capacity . | . . . . . . . Average Capacity . | . . . . . . . Most Carried . | . . . . . . . Average Carried . | . . . . . . . Final Capacity . | . . . . . . . Final Carried . | . . . . . . . Class Distribution -------------------- 100% | Mutant Dominant Class ---------------- Mutant | -10/Materials Mutant | -10/Mines Mutant | -9/Materials Mutant | -9/Mines Mutant | -9/Exiles Mutant | -8/Mines Resources | -11 -10 -10 -9 -9 -9 -8 ----------- Run | Yrd Mat Min Mat Min Exi Min Matter Collected 394 | 26 80 175 . . . 113 Remotely . | . . . . . . . Salvage Created 208 | . 46 . . . . 162 Parts 13 | . 8 . . . . 5 Haulers Intercepted . | . . . . . . . Recyclers Shooed . | . . . . . . . Parts Field Recycled . | . . . . . . . Retrieved Matter . | . . . . . . . Parts Self-Destructed . | . . . . . . . Prevented . | . . . . . . . Parts Restored . | . . . . . . . Kills | -11 -10 -10 -9 -9 -9 -8 ------- Run | Yrd Mat Min Mat Min Exi Min Combat Hostiles Destroyed 5 | . 3 . . . . 2 Guns 4 | . 2 . . . . 2 AOE 1 | . 1 . . . . . Classes Destroyed 2 | . 2 . . . . . Worker 1 | . 1 . . . . . Swarmer 4 | . 3 . . . . 1 Best Kill Streak 4 | . 4 . . . . 2 Combat Bots Only 3 | . 3 . . . . 2 Max Kills in Single Turn 1 | . 1 . . . . 1 Gunslinging . | . . . . . . . Exploded 1 | . 1 . . . . . Melee . | . . . . . . . Uniques/NPCs Destroyed 1 | . . . . . . 1 12-ASH (-8/Mines) Combat | -11 -10 -10 -9 -9 -9 -8 -------- Run | Yrd Mat Min Mat Min Exi Min Hostile Shots Fired 100 | . 20 13 2 . 6 59 Missed 29 | . 7 6 1 . 3 12 Hits 71 | . 13 7 1 . 3 47 Projectile 71 | . 13 7 1 . 3 47 Critical Strikes 3 | . . . . . . 3 Damage Taken 1468 | 24 104 104 10 . 31 1195 Core 1251 | 22 92 95 8 . 24 1010 Absorbed by Shields . | . . . . . . . Redirected to Core 780 | 4 40 31 8 . 24 673 Core Remaining (%) 85 | 96 . 74 . . . . Volleys Fired 39 | . 8 . . . 10 21 Largest 1 | . 1 . . . 1 1 Hottest 33 | . 33 . . . 20 20 Shots Fired 39 | . 8 . . . 10 21 Gun 38 | . 7 . . . 10 21 Cannon . | . . . . . . . Launcher 1 | . 1 . . . . . Special . | . . . . . . . Kinetic 38 | . 7 . . . 10 21 Thermal . | . . . . . . . Explosive . | . . . . . . . Electromagnetic 1 | . 1 . . . . . Robot Hit Streak 3 | . 3 . . . . 3 Robot Miss Streak 4 | . 2 . . . . 4 Penetration Max . | . . . . . . . Secondary Targets . | . . . . . . . Shots Hit Robots 16 | . 4 . . . . 12 Core Hits 9 | 1 4 . . . . 4 Critical Kills . | . . . . . . . Critical Parts Destroyed . | . . . . . . . Critical Strikes . | . . . . . . . Melee Attacks . | . . . . . . . Impact . | . . . . . . . Slashing . | . . . . . . . Piercing . | . . . . . . . Sneak Attacks . | . . . . . . . Combat Hostiles . | . . . . . . . Follow-up Attacks . | . . . . . . . Damage Inflicted 267 | 13 103 . . . . 151 Guns 214 | . 63 . . . . 151 Cannons . | . . . . . . . Explosions 40 | . 40 . . . . . Melee . | . . . . . . . Ramming 13 | 13 . . . . . . Kinetic 214 | . 63 . . . . 151 Thermal . | . . . . . . . Explosive . | . . . . . . . Electromagnetic 40 | . 40 . . . . . Impact . | . . . . . . . Slashing . | . . . . . . . Piercing . | . . . . . . . Highest Corruption 3 | 2 3 3 . . . . Average Corruption 2 | 2 2 3 . . . . Corruption Purged . | . . . . . . . Corruption Blocked . | . . . . . . . Effects 4 | . 2 2 . . . . Message Errors 1 | . . 1 . . . . Matter Fused 2 | . 1 1 . . . . Heat Flow Errors 1 | . 1 . . . . . Overload Shots . | . . . . . . . Overflow Damage . | . . . . . . . Projectiles . | . . . . . . . Explosions . | . . . . . . . Melee . | . . . . . . . Knockbacks . | . . . . . . . Impact . | . . . . . . . Kinetic . | . . . . . . . Secondary . | . . . . . . . Self-Inflicted Damage 6 | 6 . . . . . . Shots . | . . . . . . . Rammed 3 | 3 . . . . . . Targets Rammed 3 | 3 . . . . . . Kicked . | . . . . . . . Crushed . | . . . . . . . Highest Temperature 126 | . 126 . . . . 2 Average Temperature 67 | . 78 . . . . 2 Received Heat Transfer 33 | . . 27 6 . . . Siege Activations . | . . . . . . . Martial Activations . | . . . . . . . Shielding Activations . | . . . . . . . Robots Disrupted . | . . . . . . . Combat Hostiles . | . . . . . . . Robots Corrupted . | . . . . . . . Combat Hostiles . | . . . . . . . Parts Fried . | . . . . . . . Impact Corruptions . | . . . . . . . Robots Melted . | . . . . . . . Combat Hostiles . | . . . . . . . Parts Melted . | . . . . . . . Heat Transferred . | . . . . . . . Parts Sabotaged . | . . . . . . . Parts Stolen . | . . . . . . . Parts Stripped . | . . . . . . . Power Chain Reactions . | . . . . . . . Alert | -11 -10 -10 -9 -9 -9 -8 ------- Run | Yrd Mat Min Mat Min Exi Min Maximum Alert Level . | . . . . . . . Low Security (%) 100 | 100 100 100 100 100 . 100 Level 1 . | . . . . . . . Level 2 . | . . . . . . . Level 3 . | . . . . . . . Level 4 . | . . . . . . . Level 5 . | . . . . . . . High Security . | . . . . . . . Max Security . | . . . . . . . Peak Influence 65 | . 65 17 . . . 25 Initial 17 | . . 17 . . . . Average 9 | . 35 2 . . . 5 Influence Increases 110 | . 75 . . . . 35 Destroy 0b10 Robot/C 80 | . 60 . . . . 20 Destroy 0b10 Robot/NC 5 | . 5 . . . . . Destroy Leader 10 | . 10 . . . . . Lose Combat Pursuer 15 | . . . . . . 15 Influence Decreases 95 | . 30 45 . . . 20 Entered New Map 28 | . . 28 . . . . Time Decay 67 | . 30 17 . . . 20 Squads Dispatched 1 | . 1 . . . . . Investigation . | . . . . . . . Extermination . | . . . . . . . Reinforcement 1 | . 1 . . . . . Assault . | . . . . . . . Garrison . | . . . . . . . Intercept . | . . . . . . . Searches Triggered . | . . . . . . . Construction Impeded . | . . . . . . . Haulers Reinforced . | . . . . . . . Active Scanning Responses . | . . . . . . . Cargo Convoy Interrupts . | . . . . . . . Stealth | -11 -10 -10 -9 -9 -9 -8 --------- Run | Yrd Mat Min Mat Min Exi Min Distress Signals . | . . . . . . . Communications Jammed . | . . . . . . . Distress Signals . | . . . . . . . Times Spotted 16 | . 6 3 1 . 1 5 Peak Tracking Total 10 | . 4 3 1 . 10 5 Tactical Retreats 1 | . . . . . . 1 Traps | -11 -10 -10 -9 -9 -9 -8 ------- Run | Yrd Mat Min Mat Min Exi Min Traps Triggered 1 | . 1 . . . . . Indirectly . | . . . . . . . Trap Hack Attempts . | . . . . . . . Triggered . | . . . . . . . Disarmed . | . . . . . . . Reprogrammed . | . . . . . . . Reused . | . . . . . . . Traps Extracted . | . . . . . . . Installed . | . . . . . . . Triggered . | . . . . . . . Machines | -11 -10 -10 -9 -9 -9 -8 ---------- Run | Yrd Mat Min Mat Min Exi Min Machines Disabled 1 | . . . . . 1 . Max in Single Turn 1 | . . . . . 1 . Machines Repaired . | . . . . . . . Machines Dismantled . | . . . . . . . Machines Sabotaged . | . . . . . . . Overloaded Fab Kills . | . . . . . . . Hacking | -11 -10 -10 -9 -9 -9 -8 --------- Run | Yrd Mat Min Mat Min Exi Min Machines Accessed 1 | . . . . . 1 . Terminals . | . . . . . . . Fabricators . | . . . . . . . Repair Stations . | . . . . . . . Recycling Units . | . . . . . . . Scanalyzers . | . . . . . . . Garrison Access . | . . . . . . . Total Hacks 1 | . . . . . 1 . Successful 1 | . . . . . 1 . Failed . | . . . . . . . Catastrophic . | . . . . . . . Database Lockouts . | . . . . . . . Manual 1 | . . . . . 1 . Terminals . | . . . . . . . Fabricators . | . . . . . . . Repair Stations . | . . . . . . . Recycling Units . | . . . . . . . Scanalyzers . | . . . . . . . Garrison Access . | . . . . . . . Terminal Hacks 1 | . . . . . 1 . Proto ID Catalog 1 | . . . . . 1 . Fabricator Hacks . | . . . . . . . Repair Station Hacks . | . . . . . . . Recycling Unit Hacks . | . . . . . . . Scanalyzer . | . . . . . . . Garrison Access Hacks . | . . . . . . . Unauthorized Hacks . | . . . . . . . Terminals . | . . . . . . . Fabricators . | . . . . . . . Repair Stations . | . . . . . . . Recycling Units . | . . . . . . . Scanalyzers . | . . . . . . . Garrison Access . | . . . . . . . Data Cores Recovered . | . . . . . . . Used . | . . . . . . . Hacking Detections . | . . . . . . . Full Trace Events . | . . . . . . . Feedback Events . | . . . . . . . Feedback Blocked . | . . . . . . . Robot Schematics Acquired . | . . . . . . . Robots Built . | . . . . . . . Authchips . | . . . . . . . Time . | . . . . . . . Total Robot Build Rating . | . . . . . . . Part Schematics Acquired . | . . . . . . . Parts Built . | . . . . . . . Authchips . | . . . . . . . Time . | . . . . . . . Total Part Build Rating . | . . . . . . . Part Studies Acquired . | . . . . . . . Parts Repaired . | . . . . . . . Time . | . . . . . . . Parts Recycled . | . . . . . . . Recycled Matter . | . . . . . . . Retrieved Matter . | . . . . . . . Retrieved Components . | . . . . . . . Parts Scanalyzed . | . . . . . . . Part Schematics Acquired . | . . . . . . . Parts Damaged . | . . . . . . . Bothacking | -11 -10 -10 -9 -9 -9 -8 ------------ Run | Yrd Mat Min Mat Min Exi Min Used RIF Installer . | . . . . . . . Robots Hacked . | . . . . . . . Non-combat . | . . . . . . . Combat . | . . . . . . . Robot Hacks Applied . | . . . . . . . Relay Couplers Released . | . . . . . . . Fabnet Peak Effective % . | . . . . . . . Robots Rewired . | . . . . . . . Allies Hacked . | . . . . . . . Hacks Repelled . | . . . . . . . Allies | -11 -10 -10 -9 -9 -9 -8 -------- Run | Yrd Mat Min Mat Min Exi Min Total Allies . | . . . . . . . Largest Group . | . . . . . . . Highest-Rated Group . | . . . . . . . Highest-Rated Ally . | . . . . . . . Total Orders . | . . . . . . . Ally Attacks . | . . . . . . . Total Damage . | . . . . . . . Kills . | . . . . . . . Allies Corrupted . | . . . . . . . Allies Melted . | . . . . . . . Intel | -11 -10 -10 -9 -9 -9 -8 ------- Run | Yrd Mat Min Mat Min Exi Min Active Infowar (turns) . | . . . . . . . Robot Analysis Total . | . . . . . . . Derelict Logs Recovered 1 | . . 1 . . . . Drone Launches . | . . . . . . . Drone Recoveries . | . . . . . . . Exploration | -11 -10 -10 -9 -9 -9 -8 ------------- Run | Yrd Mat Min Mat Min Exi Min Turns Passed 483 | 14 72 156 16 12 116 97 Spaces Moved 909 | 19 111 411 44 31 216 77 Core 60 | 19 38 . . . 3 . Treads . | . . . . . . . Legs 18 | . . . . . . 18 Wheels . | . . . . . . . Hover . | . . . . . . . Flight 831 | . 73 411 44 31 213 59 Fastest Speed 37 | 50 40 37 37 37 37 50 Average Speed 41 | 50 43 37 37 37 43 59 Slowest Speed 90 | 50 50 40 37 37 50 90 Overloaded Moves . | . . . . . . . Propulsion Burnouts . | . . . . . . . Robots Hopped 13 | . 2 10 . . . 1 Potential Cave-ins . | . . . . . . . Cave-ins Triggered . | . . . . . . . Exploration Rate (%) 28 | 3 29 72 7 11 62 18 Regions Visited 6 Branch Regions 4 Pre-discovered Areas . | . . . . . . . Known Exits Taken . | . . . . . . . Unknown Exits Taken 6 | 1 1 1 1 1 1 . Scrap Searched 2 | . . 1 . . . 1 Spaces Dug . | . . . . . . . Terrain Destroyed . | . . . . . . . Melee . | . . . . . . . Projectile . | . . . . . . . AOE . | . . . . . . . Terrain Rammed . | . . . . . . . Walls Destroyed . | . . . . . . . Machines Disabled . | . . . . . . . Actions | -11 -10 -10 -9 -9 -9 -8 --------- Run | Yrd Mat Min Mat Min Exi Min Total 952 | 22 122 401 43 30 228 106 Wait 7 | . . . . . . 7 Move 878 | 18 106 391 43 30 215 75 Hop 12 | . 2 9 . . . 1 Pick Up . | . . . . . . . Fast Attach 5 | 1 1 1 . . 1 1 Attach . | . . . . . . . Detach . | . . . . . . . Swap 2 | . 2 . . . . . Drop 3 | . . . . . 2 1 Fire 39 | . 8 . . . 10 21 Melee . | . . . . . . . Ram 3 | 3 . . . . . . Kick . | . . . . . . . Crush . | . . . . . . . Escape Stasis . | . . . . . . . Rewire . | . . . . . . . Trap . | . . . . . . . Miscellaneous 3 | . 3 . . . . . Route ------- -11/Scrapyard -10/Materials -10/Mines -9/Materials -9/Mines -9/Exiles -8/Mines (discovered 1 exit: [*Mat]) History --------- Turn | Location | Event 3 | -11/Scrapyard | Discovered new exit (range 15) 15 | -11/Scrapyard | Entered Materials 80 | -10/Materials | Discovered new exit (range 16) 87 | -10/Materials | Entered Mines 98 | -10/Mines | Learned Materials trap positions 115 | -10/Mines | Found DCF Scrap (12 items) 122 | -10/Mines | Upgraded with Propulsion slot (x1) 239 | -10/Mines | Discovered new exit (range 12) 243 | -10/Mines | Entered Materials 244 | -9/Materials | Loaded intel: 19 trap records 245 | -9/Materials | Reached level 2 251 | -9/Materials | Discovered new exit (range 16) 259 | -9/Materials | Entered Mines 269 | -9/Mines | Deemed a non-threat by the Exiles lab entrance 269 | -9/Mines | Discovered new exit (range 5) 271 | -9/Mines | Entered Exiles 273 | -9/Exiles | Reached level 3 281 | -9/Exiles | Met 8R-AWN 287 | -9/Exiles | Met EX-HEX 297 | -9/Exiles | Met EX-BIN 303 | -9/Exiles | Aligned with FarCom system 303 | -9/Exiles | Given EX-Vault access code 311 | -9/Exiles | Opened EX-Vault 313 | -9/Exiles | Upgraded with Propulsion slot (x2) 314 | -9/Exiles | Build established: Mutant 316 | -9/Exiles | Found Flying Fortress v7 327 | -9/Exiles | Warned to stay clear of 0b10 Research branches 345 | -9/Exiles | Met EX-DEC 368 | -9/Exiles | Attacked by the Exiles 383 | -9/Exiles | Discovered new exit (range 10) 387 | -9/Exiles | Left Exiles lab with Flying Fortress v7 387 | -9/Exiles | Entered Mines 410 | -8/Mines | Discovered new exit (range 3) 411 | -8/Mines | 12-ASH came to Exiles' defense 426 | -8/Mines | Core integrity fell below 50% 462 | -8/Mines | Destroyed 12-ASH 478 | -8/Mines | Found DCF Scrap (13 items) 484 | -8/Mines | Self-destructed Last Messages --------------- 00467_ Acquired Prototype Leg. 00467_ Identified Exp. Flexi-carbon Leg. 00470_ K-01 Serf collects debris. 00472_ Acquired 10 matter. 00473_ K-01 Serf collects debris. 00478_ Searching scrap... 00478_ Found Deuterium Engine. 00478_ Found Lgt. Deuterium Engine. 00478_ Found Cesium-ion Thruster. 00478_ Found VTOL Module. 00478_ Found Arm. Wheel. 00478_ Found Hcp. Battery. 00478_ Found Cryofiber Web. 00478_ Found Shock Rifle. 00478_ Found Hvy. Particle Cannon. 00478_ Found Hpw. Shotgun. 00478_ Found Hvy. Mace. 00478_ Found 101 Matter. A note is attached: "With love, from the DCF." 00479_ T-07 Excavator is excavating. Map ----- +----------------------------------------------------+ | ????????????????????????????????????? | | ????????????????????????????????????? | | ????????????????????????????????????? | | ????????????????####????????????????? | | ???????????????## ##???????????????? | | ??????????###?## #???????????????? | | ??????????# ### #???????????????? | | ??????????# #????????????????? | | ????????### ##???????????????? | | ????????# " ##??????????????? | | ????##??# %" ##?????????????? | | ????# #?#["## """ #?????????????? | | ######=##%#?## """ #?????????????? | | #" ###"!*##?# """ ##?????????????? | | ?# %%!"#?## ##??????????????? | | ?# *=##"####??##### #???????????????? | | ?##!%#"##?????????# #???????????????? | | ??#=